[Event "*** Titled Tuesday Blitz"]
[Site "Chess.com"]
[Date "2020.12.01"]
[Round "1"]
[White "Srisshhhtea"]
[Black "Lion-Al-Messi"]
[Result "0-1"]
[WhiteElo "2243"]
[BlackElo "2561"]
[TimeControl "180+1"]
[EndTime "10:08:18 PST"]
[Termination "Lion-Al-Messi won by checkmate"]

1. d4 {[%clk 0:02:56.2]} 1... d5 {[%clk 0:02:58.7]} 2. c4 {[%clk 0:02:55.3]}
2... c6 {[%clk 0:02:59.1]} 3. Nf3 {[%clk 0:02:52.6]} 3... Nf6 {[%clk 0:02:59.5]}
4. Nbd2 {[%clk 0:02:51.6]} 4... Bf5 {[%clk 0:02:46.5]} 5. Nh4 {[%clk 0:02:42.5]}
5... Be6 {[%clk 0:02:41.2]} 6. Qb3 {[%clk 0:02:40.1]} 6... Qb6 {[%clk
0:02:30.8]} 7. c5 {[%clk 0:02:37]} 7... Qxb3 {[%clk 0:02:27.2]} 8. axb3 {[%clk
0:02:36.9]} 8... Nbd7 {[%clk 0:02:21.8]} 9. b4 {[%clk 0:02:33.4]} 9... a6 {[%clk
0:02:18.9]} 10. e3 {[%clk 0:02:33.2]} 10... Rb8 {[%clk 0:02:15.3]} 11. Nb3
{[%clk 0:02:30.5]} 11... g5 {[%clk 0:02:07.4]} 12. Nf3 {[%clk 0:02:29.5]} 12...
g4 {[%clk 0:02:04.9]} 13. Ng1 {[%clk 0:02:21.7]} 13... Bg7 {[%clk 0:02:02.4]}
14. Bd3 {[%clk 0:02:20.8]} 14... O-O {[%clk 0:02:00.9]} 15. Ne2 {[%clk
0:02:18.4]} 15... Ne4 {[%clk 0:01:59.9]} 16. Nf4 {[%clk 0:02:17.4]} 16... Ng5
{[%clk 0:01:38]} 17. Bd2 {[%clk 0:02:09.2]} 17... f5 {[%clk 0:01:27.1]} 18. Ke2
{[%clk 0:01:59.1]} 18... Rf6 {[%clk 0:01:03.4]} 19. h4 {[%clk 0:01:56.1]} 19...
gxh3 {[%clk 0:01:02.8]} 20. gxh3 {[%clk 0:01:57]} 20... Bf7 {[%clk 0:01:03]} 21.
Rhg1 {[%clk 0:01:50.8]} 21... Ne4 {[%clk 0:01:02.3]} 22. Be1 {[%clk 0:01:47.7]}
22... h6 {[%clk 0:00:50.1]} 23. f3 {[%clk 0:01:46.7]} 23... Ng5 {[%clk
0:00:50.1]} 24. h4 {[%clk 0:01:22.9]} 24... Nh7 {[%clk 0:00:43.3]} 25. Bc3
{[%clk 0:01:09.4]} 25... e6 {[%clk 0:00:40.3]} 26. Rg2 {[%clk 0:01:05.9]} 26...
Kh8 {[%clk 0:00:36.9]} 27. Rag1 {[%clk 0:01:06]} 27... Bf8 {[%clk 0:00:28.8]}
28. Nh5 {[%clk 0:01:03.2]} 28... Be7 {[%clk 0:00:21.8]} 29. Nxf6 {[%clk
0:01:02.1]} 29... Bxf6 {[%clk 0:00:22.7]} 30. e4 {[%clk 0:00:48.5]} 30... fxe4
{[%clk 0:00:20.8]} 31. fxe4 {[%clk 0:00:49.4]} 31... Bh5+ {[%clk 0:00:21]} 32.
Kd2 {[%clk 0:00:46.9]} 32... Bxh4 {[%clk 0:00:21.2]} 33. Rh2 {[%clk 0:00:41.2]}
33... Ng5 {[%clk 0:00:20.8]} 34. Rxh4 {[%clk 0:00:34]} 34... Nf3+ {[%clk
0:00:20.9]} 35. Kc1 {[%clk 0:00:29.5]} 35... Nxh4 {[%clk 0:00:20.1]} 36. Rh1
{[%clk 0:00:29.5]} 36... Bg6 {[%clk 0:00:18.7]} 37. Rxh4 {[%clk 0:00:28.7]}
37... Kg7 {[%clk 0:00:19.1]} 38. Kd2 {[%clk 0:00:27.1]} 38... Nf6 {[%clk
0:00:19.3]} 39. exd5 {[%clk 0:00:23.2]} 39... exd5 {[%clk 0:00:19.5]} 40. Bxg6
{[%clk 0:00:22]} 40... Kxg6 {[%clk 0:00:20.4]} 41. Kd3 {[%clk 0:00:22]} 41... h5
{[%clk 0:00:18.9]} 42. Bd2 {[%clk 0:00:22.1]} 42... Ng4 {[%clk 0:00:19.3]} 43.
Bf4 {[%clk 0:00:21.7]} 43... Rf8 {[%clk 0:00:19.2]} 44. Bd6 {[%clk 0:00:19.7]}
44... Rf3+ {[%clk 0:00:19]} 45. Kc2 {[%clk 0:00:20.3]} 45... Ne3+ {[%clk
0:00:18.5]} 46. Kb1 {[%clk 0:00:20.6]} 46... Nf5 {[%clk 0:00:18.8]} 47. Nd2
{[%clk 0:00:19.8]} 47... Nxh4 {[%clk 0:00:18]} 48. Nxf3 {[%clk 0:00:19.7]} 48...
Nxf3 {[%clk 0:00:18.9]} 49. Kc2 {[%clk 0:00:19.3]} 49... Nxd4+ {[%clk
0:00:18.5]} 50. Kd3 {[%clk 0:00:19.1]} 50... Nf5 {[%clk 0:00:19.4]} 51. Bh2
{[%clk 0:00:18.8]} 51... h4 {[%clk 0:00:19.4]} 52. b3 {[%clk 0:00:17.1]} 52...
Kg5 {[%clk 0:00:19.6]} 53. Ke2 {[%clk 0:00:16.4]} 53... Kg4 {[%clk 0:00:19.8]}
54. Kf2 {[%clk 0:00:16.9]} 54... h3 {[%clk 0:00:19.8]} 55. Be5 {[%clk
0:00:16.9]} 55... Nh4 {[%clk 0:00:17.5]} 56. Bd6 {[%clk 0:00:15]} 56... Nf3
{[%clk 0:00:17.6]} 57. Bc7 {[%clk 0:00:13.9]} 57... d4 {[%clk 0:00:17.8]} 58.
Bg3 {[%clk 0:00:11.5]} 58... d3 {[%clk 0:00:16.8]} 59. Bb8 {[%clk 0:00:12.4]}
59... h2 {[%clk 0:00:16.5]} 60. Kg2 {[%clk 0:00:10.8]} 60... d2 {[%clk
0:00:16.6]} 61. Bxh2 {[%clk 0:00:10]} 61... d1=Q {[%clk 0:00:16.6]} 62. Bf4
{[%clk 0:00:10.9]} 62... Qg1# {[%clk 0:00:16.8]} 0-1

[Event "*** Titled Tuesday Blitz"]
[Site "Chess.com"]
[Date "2020.12.01"]
[Round "1"]
[White "Sueetin"]
[Black "scarabee43"]
[Result "1/2-1/2"]
[WhiteElo "2266"]
[BlackElo "2558"]
[TimeControl "180+1"]
[EndTime "10:08:21 PST"]
[Termination "Game drawn by repetition"]

1. c4 {[%clk 0:03:00.9]} 1... Nf6 {[%clk 0:02:59.1]} 2. g3 {[%clk 0:02:58]} 2...
e6 {[%clk 0:02:54.4]} 3. Bg2 {[%clk 0:02:57.2]} 3... d5 {[%clk 0:02:55.1]} 4.
Nf3 {[%clk 0:02:51.3]} 4... Be7 {[%clk 0:02:55.4]} 5. O-O {[%clk 0:02:47.1]}
5... O-O {[%clk 0:02:56]} 6. b3 {[%clk 0:02:40]} 6... b6 {[%clk 0:02:55.5]} 7.
Bb2 {[%clk 0:02:38.7]} 7... Bb7 {[%clk 0:02:55.1]} 8. d3 {[%clk 0:02:36.4]} 8...
Nbd7 {[%clk 0:02:54.6]} 9. Nbd2 {[%clk 0:02:34.3]} 9... c5 {[%clk 0:02:51.4]}
10. e3 {[%clk 0:02:24.3]} 10... Qc7 {[%clk 0:02:48.6]} 11. Qe2 {[%clk
0:02:14.5]} 11... Rad8 {[%clk 0:02:45.2]} 12. Rac1 {[%clk 0:02:07.5]} 12... Rfe8
{[%clk 0:02:42.5]} 13. Rfd1 {[%clk 0:01:58]} 13... Qb8 {[%clk 0:02:41.1]} 14. h3
{[%clk 0:01:22]} 14... h6 {[%clk 0:02:24.8]} 15. Nf1 {[%clk 0:01:17.8]} 15...
Bf8 {[%clk 0:02:19.8]} 16. g4 {[%clk 0:01:14.2]} 16... a6 {[%clk 0:02:13]} 17.
Ng3 {[%clk 0:01:13.9]} 17... b5 {[%clk 0:02:11.8]} 18. Bc3 {[%clk 0:00:59.1]}
18... e5 {[%clk 0:01:50]} 19. cxd5 {[%clk 0:00:55.9]} 19... Nxd5 {[%clk
0:01:49.3]} 20. Bb2 {[%clk 0:00:49.5]} 20... Re6 {[%clk 0:01:29.9]} 21. Nd2
{[%clk 0:00:47.4]} 21... N5f6 {[%clk 0:01:27.4]} 22. Bxb7 {[%clk 0:00:44.9]}
22... Qxb7 {[%clk 0:01:27.6]} 23. Qf3 {[%clk 0:00:45.5]} 23... Qb6 {[%clk
0:01:22.1]} 24. Nde4 {[%clk 0:00:42]} 24... Nxe4 {[%clk 0:01:20.5]} 25. dxe4
{[%clk 0:00:29.6]} 25... Nf6 {[%clk 0:01:17.4]} 26. Rd5 {[%clk 0:00:22.3]} 26...
Nxd5 {[%clk 0:01:16.7]} 27. exd5 {[%clk 0:00:22.6]} 27... Red6 {[%clk
0:00:58.2]} 28. e4 {[%clk 0:00:21.8]} 28... f6 {[%clk 0:00:57.3]} 29. Nf5 {[%clk
0:00:21.5]} 29... R6d7 {[%clk 0:00:57.5]} 30. Qe3 {[%clk 0:00:17.3]} 30... Rb7
{[%clk 0:00:50.5]} 31. h4 {[%clk 0:00:06.8]} 31... c4 {[%clk 0:00:48.1]} 32. Qg3
{[%clk 0:00:06.9]} 32... Rc7 {[%clk 0:00:43]} 33. g5 {[%clk 0:00:05.7]} 33...
hxg5 {[%clk 0:00:41.8]} 34. hxg5 {[%clk 0:00:06.3]} 34... c3 {[%clk 0:00:33.9]}
35. Bxc3 {[%clk 0:00:05.5]} 35... Rdc8 {[%clk 0:00:33.5]} 36. g6 {[%clk
0:00:04.2]} 36... Rxc3 {[%clk 0:00:11.7]} 37. Rxc3 {[%clk 0:00:05.1]} 37... Rxc3
{[%clk 0:00:11.8]} 38. Qxc3 {[%clk 0:00:05.2]} 38... Qc5 {[%clk 0:00:11.3]} 39.
Qh3 {[%clk 0:00:04.3]} 39... Qc1+ {[%clk 0:00:11]} 40. Kg2 {[%clk 0:00:04.7]}
40... Qg5+ {[%clk 0:00:10.6]} 41. Kf3 {[%clk 0:00:03.3]} 41... Qxg6 {[%clk
0:00:10.2]} 42. Qg4 {[%clk 0:00:02.2]} 42... Qe8 {[%clk 0:00:08.6]} 43. Ng3
{[%clk 0:00:01.4]} 43... Qd8 {[%clk 0:00:07.8]} 44. Nh5 {[%clk 0:00:01.6]} 44...
Qd6 {[%clk 0:00:08]} 45. Qg6 {[%clk 0:00:01.6]} 45... Qe7 {[%clk 0:00:06.7]} 46.
Kg4 {[%clk 0:00:01.7]} 46... Qa7 {[%clk 0:00:04.8]} 47. Ng3 {[%clk 0:00:01.5]}
47... Qd7+ {[%clk 0:00:04.7]} 48. Nf5 {[%clk 0:00:01.6]} 48... a5 {[%clk
0:00:04.3]} 49. f3 {[%clk 0:00:01.9]} 49... a4 {[%clk 0:00:03.8]} 50. Kh5 {[%clk
0:00:02.2]} 50... axb3 {[%clk 0:00:03.6]} 51. axb3 {[%clk 0:00:03.1]} 51... Qc7
{[%clk 0:00:01.8]} 52. d6 {[%clk 0:00:03.4]} 52... Qd7 {[%clk 0:00:01.9]} 53.
Nh6+ {[%clk 0:00:03.5]} 53... Kh8 {[%clk 0:00:02.2]} 54. Nf7+ {[%clk 0:00:03.9]}
54... Kg8 {[%clk 0:00:02.7]} 55. Nh6+ {[%clk 0:00:04.2]} 55... Kh8 {[%clk
0:00:03.2]} 56. Nf7+ {[%clk 0:00:04.4]} 56... Kg8 {[%clk 0:00:03.8]} 57. Nh6+
{[%clk 0:00:03.9]} 1/2-1/2

[Event "*** Titled Tuesday Blitz"]
[Site "Chess.com"]
[Date "2020.12.01"]
[Round "1"]
[White "JuliaEfremova"]
[Black "Beltraxtor"]
[Result "0-1"]
[WhiteElo "2201"]
[BlackElo "2539"]
[TimeControl "180+1"]
[EndTime "10:08:23 PST"]
[Termination "Beltraxtor won by resignation"]

1. d4 {[%clk 0:03:00.7]} 1... d5 {[%clk 0:02:58.2]} 2. Bf4 {[%clk 0:03:00.7]}
2... Nf6 {[%clk 0:02:56.9]} 3. Nf3 {[%clk 0:02:59.1]} 3... e6 {[%clk 0:02:56]}
4. e3 {[%clk 0:02:58.8]} 4... c5 {[%clk 0:02:55.9]} 5. c3 {[%clk 0:02:58.2]}
5... Bd6 {[%clk 0:02:55.2]} 6. Bxd6 {[%clk 0:02:52.5]} 6... Qxd6 {[%clk
0:02:55.3]} 7. Bd3 {[%clk 0:02:53.1]} 7... Nc6 {[%clk 0:02:54.7]} 8. Nbd2 {[%clk
0:02:49.2]} 8... O-O {[%clk 0:02:53.6]} 9. O-O {[%clk 0:02:45.9]} 9... e5 {[%clk
0:02:49.6]} 10. dxe5 {[%clk 0:02:46]} 10... Nxe5 {[%clk 0:02:50.5]} 11. Nxe5
{[%clk 0:02:46.6]} 11... Qxe5 {[%clk 0:02:51.3]} 12. Nf3 {[%clk 0:02:47.2]}
12... Qc7 {[%clk 0:02:49.4]} 13. h3 {[%clk 0:02:38.2]} 13... h6 {[%clk
0:02:45.4]} 14. Bc2 {[%clk 0:02:37.6]} 14... Be6 {[%clk 0:02:38.6]} 15. Qd3
{[%clk 0:02:36.1]} 15... Rfe8 {[%clk 0:02:31.6]} 16. b4 {[%clk 0:02:34.3]} 16...
Rac8 {[%clk 0:02:24.2]} 17. Rac1 {[%clk 0:02:24.1]} 17... b6 {[%clk 0:02:23.4]}
18. a4 {[%clk 0:02:22.8]} 18... Ne4 {[%clk 0:02:18.2]} 19. c4 {[%clk 0:02:13.9]}
19... Qb7 {[%clk 0:01:53.1]} 20. cxd5 {[%clk 0:02:09.6]} 20... Bxd5 {[%clk
0:01:50.8]} 21. bxc5 {[%clk 0:02:05.3]} 21... Rxc5 {[%clk 0:01:48.5]} 22. Bb1
{[%clk 0:02:00.5]} 22... Rec8 {[%clk 0:01:31.5]} 23. Rxc5 {[%clk 0:01:59.7]}
23... Rxc5 {[%clk 0:01:32.4]} 24. Rd1 {[%clk 0:01:56]} 24... Nf6 {[%clk
0:01:32.1]} 25. Ne5 {[%clk 0:01:23.4]} 25... Rc8 {[%clk 0:01:12.8]} 26. Ng4
{[%clk 0:01:13.9]} 26... Bxg2 {[%clk 0:00:52.3]} 27. Nxf6+ {[%clk 0:01:07.9]}
27... gxf6 {[%clk 0:00:53.2]} 28. Qh7+ {[%clk 0:01:06.9]} 28... Kf8 {[%clk
0:00:53.5]} 29. Qxh6+ {[%clk 0:01:03]} 29... Ke7 {[%clk 0:00:53.6]} 30. Bf5
{[%clk 0:00:50.5]} 30... Rg8 {[%clk 0:00:36.4]} 31. Rd7+ {[%clk 0:00:47.5]}
31... Qxd7 {[%clk 0:00:35.3]} 32. Bxd7 {[%clk 0:00:48.4]} 32... Bxh3+ {[%clk
0:00:28.5]} 33. Kh2 {[%clk 0:00:42.2]} 33... Bxd7 {[%clk 0:00:28.4]} 34. Qf4
{[%clk 0:00:39.4]} 34... Rg4 {[%clk 0:00:27]} 35. Qc7 {[%clk 0:00:36.5]} 35...
Rxa4 {[%clk 0:00:27]} 36. Kg3 {[%clk 0:00:34.9]} 36... Ra5 {[%clk 0:00:11.8]}
37. f4 {[%clk 0:00:33.7]} 37... Ra4 {[%clk 0:00:10.8]} 38. Qc3 {[%clk 0:00:31]}
38... a5 {[%clk 0:00:08.9]} 39. Qc7 {[%clk 0:00:29.1]} 39... Rb4 {[%clk
0:00:09.2]} 40. e4 {[%clk 0:00:25.9]} 40... Rxe4 {[%clk 0:00:05.4]} 41. Qxb6
{[%clk 0:00:24.6]} 41... a4 {[%clk 0:00:06]} 42. Qb7 {[%clk 0:00:23]} 42... Re3+
{[%clk 0:00:04.5]} 43. Kf2 {[%clk 0:00:23.2]} 43... Rb3 {[%clk 0:00:04.7]} 44.
Qe4+ {[%clk 0:00:23]} 44... Kf8 {[%clk 0:00:05.3]} 45. Qa8+ {[%clk 0:00:22.5]}
45... Kg7 {[%clk 0:00:05.1]} 46. Qg2+ {[%clk 0:00:22.9]} 46... Kf8 {[%clk
0:00:05.2]} 47. Qa8+ {[%clk 0:00:22.6]} 47... Ke7 {[%clk 0:00:05.8]} 48. Qe4+
{[%clk 0:00:21.4]} 48... Kd6 {[%clk 0:00:05.5]} 49. Qd4+ {[%clk 0:00:19.9]}
49... Kc7 {[%clk 0:00:05]} 50. Qxf6 {[%clk 0:00:19.6]} 50... a3 {[%clk
0:00:04.3]} 51. Qxf7 {[%clk 0:00:19.1]} 51... Rb2+ {[%clk 0:00:04.4]} 52. Kg3
{[%clk 0:00:18.8]} 52... a2 {[%clk 0:00:05]} 53. Qc4+ {[%clk 0:00:18.6]} 53...
Bc6 {[%clk 0:00:04.1]} 54. Qf7+ {[%clk 0:00:17.2]} 54... Kb6 {[%clk 0:00:04.7]}
55. Qf6 {[%clk 0:00:06.8]} 55... a1=Q {[%clk 0:00:04.6]} 56. Qd4+ {[%clk
0:00:07.2]} 56... Kb7 {[%clk 0:00:04.5]} 57. Qg7+ {[%clk 0:00:07]} 57... Ka6
{[%clk 0:00:04.8]} 0-1

[Event "*** Titled Tuesday Blitz"]
[Site "Chess.com"]
[Date "2020.12.01"]
[Round "1"]
[White "IMJonathanCarlstedt"]
[Black "natelleka"]
[Result "0-1"]
[WhiteElo "2490"]
[BlackElo "2178"]
[TimeControl "180+1"]
[EndTime "10:08:28 PST"]
[Termination "natelleka won by resignation"]

1. d4 {[%clk 0:03:00.7]} 1... d5 {[%clk 0:02:59.8]} 2. Bf4 {[%clk 0:02:58.8]}
2... Nc6 {[%clk 0:02:59]} 3. e3 {[%clk 0:02:58.3]} 3... Bf5 {[%clk 0:02:58.8]}
4. c4 {[%clk 0:02:56.5]} 4... e6 {[%clk 0:02:58.7]} 5. Nc3 {[%clk 0:02:56]} 5...
Nf6 {[%clk 0:02:58.3]} 6. Nf3 {[%clk 0:02:55.3]} 6... Be7 {[%clk 0:02:57.6]} 7.
Bd3 {[%clk 0:02:51.8]} 7... O-O {[%clk 0:02:57.1]} 8. O-O {[%clk 0:02:47.3]}
8... Ne4 {[%clk 0:02:36.6]} 9. Qb1 {[%clk 0:02:34.8]} 9... Nxc3 {[%clk
0:01:24.6]} 10. bxc3 {[%clk 0:02:35.7]} 10... Bg4 {[%clk 0:01:19.5]} 11. Bxh7+
{[%clk 0:02:29.5]} 11... Kh8 {[%clk 0:01:19.3]} 12. Bd3 {[%clk 0:02:26.3]} 12...
Bxf3 {[%clk 0:01:16]} 13. gxf3 {[%clk 0:02:27.2]} 13... Bd6 {[%clk 0:01:07.2]}
14. Bxd6 {[%clk 0:02:25.8]} 14... Qxd6 {[%clk 0:00:59.3]} 15. f4 {[%clk
0:02:25.2]} 15... f6 {[%clk 0:00:42]} 16. Qd1 {[%clk 0:02:23.3]} 16... f5 {[%clk
0:00:23.7]} 17. Kh1 {[%clk 0:02:15]} 17... Rf6 {[%clk 0:00:23.1]} 18. Rg1 {[%clk
0:02:11.4]} 18... Rh6 {[%clk 0:00:20.8]} 19. Rg2 {[%clk 0:02:07.5]} 19... Rg8
{[%clk 0:00:17.6]} 20. Qf3 {[%clk 0:01:50.1]} 20... g5 {[%clk 0:00:15.6]} 21. c5
{[%clk 0:01:42.4]} 21... Qe7 {[%clk 0:00:10.1]} 22. fxg5 {[%clk 0:01:41.1]}
22... Rxg5 {[%clk 0:00:09.9]} 23. Rag1 {[%clk 0:01:34.5]} 23... Rhg6 {[%clk
0:00:07.4]} 24. Qh3+ {[%clk 0:01:02]} 24... Kg7 {[%clk 0:00:06.5]} 25. Bb5
{[%clk 0:00:47.1]} 25... Nd8 {[%clk 0:00:06.2]} 26. Rxg5 {[%clk 0:00:32.2]}
26... Rxg5 {[%clk 0:00:06.3]} 27. Rxg5+ {[%clk 0:00:28.9]} 27... Qxg5 {[%clk
0:00:06.4]} 28. Bd7 {[%clk 0:00:27.8]} 28... Kf6 {[%clk 0:00:04]} 29. Bc8 {[%clk
0:00:20.3]} 29... Ke7 {[%clk 0:00:03.8]} 30. Qg3 {[%clk 0:00:19.8]} 30... Qxg3
{[%clk 0:00:03.4]} 31. fxg3 {[%clk 0:00:20.7]} 31... b6 {[%clk 0:00:03.6]} 32.
cxb6 {[%clk 0:00:19.7]} 32... cxb6 {[%clk 0:00:03]} 33. h4 {[%clk 0:00:20.3]}
33... Nf7 {[%clk 0:00:03.2]} 34. h5 {[%clk 0:00:20.4]} 34... Nd6 {[%clk
0:00:03.4]} 35. Ba6 {[%clk 0:00:19.9]} 35... Kf6 {[%clk 0:00:03.8]} 36. Be2
{[%clk 0:00:17.5]} 36... Ne4 {[%clk 0:00:03.9]} 37. Kg2 {[%clk 0:00:17.5]} 37...
Nxc3 {[%clk 0:00:04.2]} 38. Bb5 {[%clk 0:00:12.7]} 38... Nxa2 {[%clk 0:00:04.4]}
39. Be8 {[%clk 0:00:12.1]} 39... Nc3 {[%clk 0:00:04.5]} 40. Kf3 {[%clk 0:00:12]}
40... a5 {[%clk 0:00:04.3]} 41. h6 {[%clk 0:00:11.7]} 41... a4 {[%clk
0:00:04.5]} 42. Kf4 {[%clk 0:00:10.8]} 42... a3 {[%clk 0:00:04.7]} 43. h7 {[%clk
0:00:10]} 43... Kg7 {[%clk 0:00:04.7]} 44. Bd7 {[%clk 0:00:09.9]} 44... a2
{[%clk 0:00:03.9]} 45. Bxe6 {[%clk 0:00:10.8]} 45... a1=Q {[%clk 0:00:03.5]} 46.
Bxf5 {[%clk 0:00:10.3]} 46... Qf1+ {[%clk 0:00:03.4]} 47. Kg4 {[%clk 0:00:10.6]}
47... Qe2+ {[%clk 0:00:03.4]} 48. Kg5 {[%clk 0:00:10.7]} 48... Qxe3+ {[%clk
0:00:03.6]} 49. Kh5 {[%clk 0:00:10.9]} 49... Qxg3 {[%clk 0:00:03.7]} 50. Bg4
{[%clk 0:00:09.4]} 50... Qh2+ {[%clk 0:00:03.7]} 51. Kg5 {[%clk 0:00:09.2]}
51... Qxh7 {[%clk 0:00:04]} 52. Bf5 {[%clk 0:00:09]} 52... Qh6+ {[%clk
0:00:04.2]} 53. Kg4 {[%clk 0:00:08.9]} 53... Ne2 {[%clk 0:00:04.6]} 54. Kf3
{[%clk 0:00:09.1]} 54... Nxd4+ {[%clk 0:00:04.9]} 55. Kg4 {[%clk 0:00:09.2]}
55... Nxf5 {[%clk 0:00:05.2]} 56. Kxf5 {[%clk 0:00:10.1]} 56... Qf6+ {[%clk
0:00:05.5]} 57. Kg4 {[%clk 0:00:09.3]} 57... Kg6 {[%clk 0:00:05.9]} 58. Kh3
{[%clk 0:00:09.4]} 58... Kg5 {[%clk 0:00:06.1]} 59. Kg3 {[%clk 0:00:10.3]} 59...
Qf4+ {[%clk 0:00:06.5]} 60. Kh3 {[%clk 0:00:11.2]} 0-1

[Event "*** Titled Tuesday Blitz"]
[Site "Chess.com"]
[Date "2020.12.01"]
[Round "1"]
[White "Buffy7"]
[Black "Omk124"]
[Result "1-0"]
[WhiteElo "2675"]
[BlackElo "2338"]
[TimeControl "180+1"]
[EndTime "10:08:30 PST"]
[Termination "Buffy7 won by checkmate"]

1. c4 {[%clk 0:03:00.9]} 1... Nf6 {[%clk 0:02:59.7]} 2. Nc3 {[%clk 0:02:59.9]}
2... g6 {[%clk 0:03:00.1]} 3. g3 {[%clk 0:02:59.1]} 3... Bg7 {[%clk 0:03:00.3]}
4. Bg2 {[%clk 0:02:59.7]} 4... O-O {[%clk 0:03:00.6]} 5. e3 {[%clk 0:03:00.3]}
5... d6 {[%clk 0:03:00.9]} 6. Nge2 {[%clk 0:03:00.5]} 6... e5 {[%clk 0:03:01.4]}
7. d3 {[%clk 0:03:01.1]} 7... c6 {[%clk 0:03:01.8]} 8. O-O {[%clk 0:02:58.9]}
8... Be6 {[%clk 0:03:01.7]} 9. b4 {[%clk 0:02:58.1]} 9... Qc8 {[%clk 0:03:00]}
10. Re1 {[%clk 0:02:50.1]} 10... Nbd7 {[%clk 0:02:57.8]} 11. Bb2 {[%clk
0:02:42.4]} 11... Nh5 {[%clk 0:02:54.9]} 12. Ne4 {[%clk 0:02:33.7]} 12... Qc7
{[%clk 0:02:27.2]} 13. Ng5 {[%clk 0:02:33.2]} 13... Rae8 {[%clk 0:02:25.8]} 14.
Nxe6 {[%clk 0:02:26.1]} 14... Rxe6 {[%clk 0:02:26.7]} 15. b5 {[%clk 0:02:26.5]}
15... f5 {[%clk 0:02:26.5]} 16. bxc6 {[%clk 0:02:25.3]} 16... bxc6 {[%clk
0:02:27.4]} 17. Qa4 {[%clk 0:02:21.7]} 17... Rc8 {[%clk 0:02:20.6]} 18. d4
{[%clk 0:02:19.4]} 18... e4 {[%clk 0:02:20.1]} 19. Rab1 {[%clk 0:02:10.4]} 19...
Nhf6 {[%clk 0:02:19.1]} 20. Ba3 {[%clk 0:02:02.4]} 20... Nb6 {[%clk 0:02:18.5]}
21. Qc2 {[%clk 0:02:00.8]} 21... d5 {[%clk 0:02:16.4]} 22. Nf4 {[%clk
0:01:52.1]} 22... Ree8 {[%clk 0:02:15.4]} 23. c5 {[%clk 0:01:42.1]} 23... Nc4
{[%clk 0:02:15.1]} 24. Bb4 {[%clk 0:01:40.2]} 24... Rb8 {[%clk 0:02:00.5]} 25.
Rb3 {[%clk 0:01:34.7]} 25... a5 {[%clk 0:02:00.2]} 26. Bc3 {[%clk 0:01:34.3]}
26... g5 {[%clk 0:01:47.3]} 27. Ne2 {[%clk 0:01:32]} 27... Qa7 {[%clk
0:01:35.9]} 28. Reb1 {[%clk 0:01:13.6]} 28... Nd7 {[%clk 0:01:35.4]} 29. Bh3
{[%clk 0:01:06.9]} 29... g4 {[%clk 0:01:32.1]} 30. Bf1 {[%clk 0:01:06.8]} 30...
a4 {[%clk 0:01:02.4]} 31. Rxb8 {[%clk 0:01:00.1]} 31... Rxb8 {[%clk 0:01:01.8]}
32. Rxb8+ {[%clk 0:00:59.6]} 32... Nxb8 {[%clk 0:01:02]} 33. Nf4 {[%clk
0:00:58.6]} 33... Qa6 {[%clk 0:01:00.5]} 34. Qb1 {[%clk 0:00:46.3]} 34... Nd7
{[%clk 0:01:00.1]} 35. h3 {[%clk 0:00:45]} 35... Bh6 {[%clk 0:00:50.8]} 36. Ng2
{[%clk 0:00:30.3]} 36... Bg5 {[%clk 0:00:46.8]} 37. hxg4 {[%clk 0:00:25.2]}
37... fxg4 {[%clk 0:00:47]} 38. Ne1 {[%clk 0:00:19.5]} 38... Bf6 {[%clk
0:00:41]} 39. Nc2 {[%clk 0:00:19.2]} 39... Nxc5 {[%clk 0:00:40.4]} 40. Qb8+
{[%clk 0:00:18.1]} 40... Kg7 {[%clk 0:00:34.4]} 41. Qf4 {[%clk 0:00:16.1]} 41...
Qc8 {[%clk 0:00:28.2]} 42. Bxc4 {[%clk 0:00:11.8]} 42... dxc4 {[%clk 0:00:28.5]}
43. Bb4 {[%clk 0:00:08.3]} 43... Nd3 {[%clk 0:00:27.4]} 44. Qxe4 {[%clk
0:00:08.7]} 44... Nxb4 {[%clk 0:00:27.4]} 45. Nxb4 {[%clk 0:00:09.6]} 45... c5
{[%clk 0:00:25.9]} 46. Nd5 {[%clk 0:00:09]} 46... cxd4 {[%clk 0:00:25.5]} 47.
exd4 {[%clk 0:00:09.6]} 47... c3 {[%clk 0:00:25.7]} 48. Ne3 {[%clk 0:00:09.9]}
48... h5 {[%clk 0:00:24.1]} 49. Nf5+ {[%clk 0:00:10]} 49... Kg8 {[%clk
0:00:21.6]} 50. Nd6 {[%clk 0:00:08.7]} 50... c2 {[%clk 0:00:20.5]} 51. Qg6+
{[%clk 0:00:08.2]} 51... Bg7 {[%clk 0:00:21]} 52. Qf7+ {[%clk 0:00:07.7]} 52...
Kh7 {[%clk 0:00:21.4]} 53. Qxh5+ {[%clk 0:00:08.3]} 53... Bh6 {[%clk 0:00:22]}
54. Qf7+ {[%clk 0:00:08.7]} 54... Bg7 {[%clk 0:00:22.5]} 55. Qh5+ {[%clk
0:00:08.4]} 55... Bh6 {[%clk 0:00:22.7]} 56. Qf7+ {[%clk 0:00:08.7]} 56... Kh8
{[%clk 0:00:20.1]} 57. Nxc8 {[%clk 0:00:06.4]} 57... Bc1 {[%clk 0:00:19.9]} 58.
Kh2 {[%clk 0:00:07.3]} 58... Bh6 {[%clk 0:00:19.7]} 59. Qh5 {[%clk 0:00:07.8]}
59... c1=Q {[%clk 0:00:20.6]} 60. Qxg4 {[%clk 0:00:07.3]} 60... Qd2 {[%clk
0:00:20]} 61. Qf5 {[%clk 0:00:07.3]} 61... Qxa2 {[%clk 0:00:19.6]} 62. Ne7
{[%clk 0:00:07.5]} 62... Qe2 {[%clk 0:00:17.6]} 63. Ng6+ {[%clk 0:00:08.4]}
63... Kg7 {[%clk 0:00:17.6]} 64. Ne5 {[%clk 0:00:09.2]} 64... Kg8 {[%clk
0:00:13.1]} 65. Qf7+ {[%clk 0:00:09.4]} 65... Kh8 {[%clk 0:00:13.4]} 66. Ng6#
{[%clk 0:00:10]} 1-0